Cogmind - Beta 11 X8 @@@ ROGUE MODE // 2021.12.19 @ 21:22:12 Player: btmk16 Result: Self-destructed Performance ------------- Evolutions (1) 500 Regions Visited (2) 400 Robots Destroyed (8) 40 Value Destroyed (121) 121 Prototype IDs (0) 0 Alien Tech Used (0) 0 Bonus (0) 0 TOTAL SCORE: 1061 Bonus ------- None Cogmind --------- Core Integrity 324/400 Matter 285/300 Energy 232/250 System Corruption 0% Temperature Cool (0) Movement Core (100) Ox1 Location -9/Materials Parts ------- > --- POWER (1) -------- Ion Engine > --- PROPULSION (4) --- (None) > --- UTILITY (2) ------ Improved Terrain Scanner Seismic Analyzer > --- WEAPON (2) ------- (None) > --- INVENTORY (5) ---- Flight Unit Medium Laser Peak State ------------ > --- POWER ------------ Light Nuclear Core > --- PROPULSION ------- Compact Wheel Compact Wheel > --- UTILITY ---------- Improved Terrain Scanner Seismic Analyzer > --- WEAPON ----------- EM Pulse Gun Medium Laser > --- INVENTORY -------- Ion Engine Wheel Compact Wheel Flight Unit Medium Laser [Rating: 11] Favorites ----------- Power Ion Engine Engine Ion Engine Power Core Light Nuclear Core Propulsion Compact Wheel Leg Aluminum Leg Wheel Compact Wheel Utility Improved Terrain Scanner Device Improved Terrain Scanner Storage Small Storage Unit Processor Seismic Analyzer Weapon Medium Laser Energy Gun Medium Laser Build | -11 -10 -9 ------- Run | Scr Mat Mat Slots Evolved 2 | . . 2 Power . | . . . Propulsion 2 | . . 2 Utility . | . . . Weapon . | . . . Parts Attached 8 | 4 1 3 Power 2 | . 1 1 Engine 1 | . . 1 Core 1 | . 1 . Reactor . | . . . Propulsion 4 | 2 . 2 Treads . | . . . Leg . | . . . Wheel 4 | 2 . 2 Hover . | . . . Flight . | . . . Utility 2 | 2 . . Device 1 | 1 . . Storage . | . . . Processor 1 | 1 . . Hackware . | . . . Protection . | . . . Artifact . | . . . Weapon . | . . . Energy Gun . | . . . Energy Cannon . | . . . Ballistic Gun . | . . . Ballistic Cannon . | . . . Launcher . | . . . Special Weapon . | . . . Impact Weapon . | . . . Slashing Weapon . | . . . Piercing Weapon . | . . . Special Melee Weapon . | . . . Unidentified Prototypes . | . . . Parts Lost 7 | . 1 6 Power 1 | . . 1 Propulsion 4 | . . 4 Utility . | . . . Weapon 2 | . 1 1 Highest Loss Streak 3 | . 1 3 Average Slot Usage (%) 79 | . 100 48 Engine 6 | . 9 2 Core 3 | . 4 2 Wheel 23 | . 28 15 Device 12 | . 14 11 Processor 12 | . 14 11 Energy Gun 19 | . 28 6 Naked Turns . | . . . Heaviest Build 15 | 15 10 8 Greatest Support 32 | 32 32 32 Greatest Overweight (x) 4 | 4 . . Average Overweight (x) . | . . . Largest Inventory Capacity 8 | 8 5 5 Average Capacity 5 | 7 5 5 Most Carried 8 | 8 5 5 Average Carried 4 | 5 4 4 Final Capacity 5 | 5 5 5 Final Carried 5 | 4 5 2 Class Distribution -------------------- 73% | Scavenger-Mutant 26% | Mutant Dominant Class ---------------- Scavenger-Mutant | -10/Materials Mutant | -9/Materials Resources | -11 -10 -9 ----------- Run | Scr Mat Mat Matter Collected 240 | 240 . . Remotely . | . . . Salvage Created 329 | 88 241 . Parts 22 | 7 15 . Haulers Intercepted . | . . . Recyclers Shooed 1 | . 1 . Parts Field Recycled . | . . . Retrieved Matter . | . . . Parts Self-Destructed . | . . . Prevented . | . . . Kills | -11 -10 -9 ------- Run | Scr Mat Mat Combat Hostiles Destroyed 4 | . 4 . Guns 3 | . 3 . AOE 1 | . 1 . Classes Destroyed 5 | 2 3 . Worker 1 | . 1 . Tunneler 1 | 1 . . Recycler 2 | 1 1 . Swarmer 2 | . 2 . Grunt 2 | . 2 . Best Kill Streak 4 | 2 4 . Combat Bots Only 2 | . 2 . Max Kills in Single Turn 1 | 1 1 . Gunslinging . | . . . Exploded 1 | . 1 . Melee . | . . . Uniques/NPCs Destroyed . | . . . Combat | -11 -10 -9 -------- Run | Scr Mat Mat Damage Taken 531 | . 230 301 Core 124 | . 48 76 Absorbed by Shields . | . . . Core Remaining (%) 90 | 100 80 . Volleys Fired 21 | 4 17 . Largest 2 | 2 2 . Hottest 90 | 90 90 . Shots Fired 42 | 8 34 . Gun 42 | 8 34 . Cannon . | . . . Launcher . | . . . Special . | . . . Kinetic . | . . . Thermal 21 | 4 17 . Explosive . | . . . Electromagnetic 21 | 4 17 . Robot Hit Streak 4 | 3 4 . Robot Miss Streak 5 | 5 4 . Penetration Max . | . . . Secondary Targets 1 | . 1 . Max Gunslinging Chain 1 | . 1 . Shots Hit Robots 22 | 3 19 . Core Hits 12 | 3 9 . Critical Kills . | . . . Critical Parts Destroyed . | . . . Critical Strikes 1 | . 1 . Burn 1 | . 1 . Melee Attacks . | . . . Impact . | . . . Slashing . | . . . Piercing . | . . . Sneak Attacks . | . . . Combat Hostiles . | . . . Follow-up Attacks . | . . . Damage Inflicted 338 | 38 300 . Guns 296 | 38 258 . Cannons . | . . . Explosions 36 | . 36 . Melee . | . . . Ramming 6 | . 6 . Kinetic . | . . . Thermal 186 | 25 161 . Explosive . | . . . Electromagnetic 146 | 13 133 . Impact . | . . . Slashing . | . . . Piercing . | . . . Highest Corruption . | . . . Average Corruption . | . . . Corruption Purged . | . . . Overload Shots . | . . . Overflow Damage . | . . . Projectiles . | . . . Explosions . | . . . Melee . | . . . Knockbacks 1 | . 1 . Impact 1 | . 1 . Kinetic . | . . . Secondary . | . . . Self-Inflicted Damage 3 | . 3 . Shots . | . . . Rammed 1 | . 1 . Targets Rammed 1 | . 1 . Kicked . | . . . Crushed . | . . . Highest Temperature 228 | 102 228 . Average Temperature 89 | 56 96 . Received Heat Transfer 183 | . 102 81 Siege Activations . | . . . Robots Corrupted . | . . . Combat Hostiles . | . . . Parts Fried . | . . . Impact Corruptions . | . . . Robots Melted . | . . . Combat Hostiles . | . . . Parts Melted . | . . . Heat Transferred 518 | 74 444 . Parts Sabotaged . | . . . Parts Stolen . | . . . Parts Stripped . | . . . Power Chain Reactions 1 | . 1 . Missiles Intercepted . | . . . Alert | -11 -10 -9 ------- Run | Scr Mat Mat Peak Influence 131 | 10 131 70 Initial 50 | . 6 50 Average 60 | 8 76 53 Maximum Alert Level . | . . . Low Security (%) 100 | 100 100 100 Level 1 . | . . . Level 2 . | . . . Level 3 . | . . . Level 4 . | . . . Level 5 . | . . . High Security . | . . . Max Security . | . . . Squads Dispatched 2 | . 2 . Investigation 2 | . 2 . Extermination . | . . . Reinforcement . | . . . Assault . | . . . Garrison . | . . . Intercept . | . . . Construction Impeded . | . . . Haulers Reinforced . | . . . Active Scanning Responses . | . . . Cargo Convoy Interrupts . | . . . Stealth | -11 -10 -9 --------- Run | Scr Mat Mat Distress Signals 1 | . . 1 Communications Jammed . | . . . Distress Signals . | . . . Times Spotted 13 | . 8 5 Peak Tracking Total 4 | . 3 4 Tactical Retreats 1 | . . 1 Traps | -11 -10 -9 ------- Run | Scr Mat Mat Traps Triggered 2 | . 1 1 Indirectly . | . . . Trap Hack Attempts . | . . . Triggered . | . . . Disarmed . | . . . Reprogrammed . | . . . Reused . | . . . Traps Extracted . | . . . Installed . | . . . Triggered . | . . . Machines | -11 -10 -9 ---------- Run | Scr Mat Mat Machines Disabled . | . . . Max in Single Turn . | . . . Machines Sabotaged . | . . . Garrisons Compromised . | . . . Overloaded Fab Kills . | . . . Hacking | -11 -10 -9 --------- Run | Scr Mat Mat Machines Accessed . | . . . Terminals . | . . . Fabricators . | . . . Repair Stations . | . . . Recycling Units . | . . . Scanalyzers . | . . . Garrison Access . | . . . Total Hacks . | . . . Successful . | . . . Failed . | . . . Catastrophic . | . . . Database Lockouts . | . . . Manual . | . . . Terminals . | . . . Fabricators . | . . . Repair Stations . | . . . Recycling Units . | . . . Scanalyzers . | . . . Garrison Access . | . . . Terminal Hacks . | . . . Fabricator Hacks . | . . . Repair Station Hacks . | . . . Recycling Unit Hacks . | . . . Scanalyzer . | . . . Garrison Access Hacks . | . . . Unauthorized Hacks . | . . . Terminals . | . . . Fabricators . | . . . Repair Stations . | . . . Recycling Units . | . . . Scanalyzers . | . . . Garrison Access . | . . . Data Cores Recovered . | . . . Used . | . . . Hacking Detections . | . . . Full Trace Events . | . . . Feedback Events . | . . . Feedback Blocked . | . . . Robot Schematics Acquired . | . . . Robots Built . | . . . Authchips . | . . . Time . | . . . Total Robot Build Rating . | . . . Part Schematics Acquired . | . . . Parts Built . | . . . Authchips . | . . . Time . | . . . Total Part Build Rating . | . . . Parts Repaired . | . . . Time . | . . . Parts Recycled . | . . . Recycled Matter . | . . . Retrieved Matter . | . . . Retrieved Components . | . . . Parts Scanalyzed . | . . . Part Schematics Acquired . | . . . Parts Damaged . | . . . Bothacking | -11 -10 -9 ------------ Run | Scr Mat Mat Used RIF Installer . | . . . Robots Hacked . | . . . Non-combat . | . . . Combat . | . . . Robot Hacks Applied . | . . . Relay Couplers Released . | . . . Fabnet Peak Effective % . | . . . Robots Rewired . | . . . Allies Hacked . | . . . Hacks Repelled . | . . . Allies | -11 -10 -9 -------- Run | Scr Mat Mat Total Allies . | . . . Largest Group . | . . . Highest-Rated Group . | . . . Highest-Rated Ally . | . . . Total Orders . | . . . Ally Attacks . | . . . Total Damage . | . . . Kills . | . . . Allies Corrupted . | . . . Allies Melted . | . . . Intel | -11 -10 -9 ------- Run | Scr Mat Mat Robot Analysis Total . | . . . Derelict Logs Recovered . | . . . Drone Launches . | . . . Drone Recoveries . | . . . Exploration | -11 -10 -9 ------------- Run | Scr Mat Mat Turns Passed 396 | 42 213 141 Spaces Moved 316 | 16 159 141 Core 2 | 2 . . Treads . | . . . Legs 2 | 2 . . Wheels 312 | 12 159 141 Hover . | . . . Flight . | . . . Fastest Speed 80 | 100 100 80 Average Speed 99 | 121 100 97 Slowest Speed 250 | 250 100 100 Overloaded Moves . | . . . Propulsion Burnouts . | . . . Robots Hopped . | . . . Cave-ins Triggered . | . . . Exploration Rate (%) 21 | 2 43 18 Regions Visited 2 Branch Regions . Pre-discovered Areas . | . . . Known Exits Taken . | . . . Unknown Exits Taken 2 | 1 1 . Scrap Searched . | . . . Spaces Dug . | . . . Terrain Destroyed 2 | . 2 . Melee . | . . . Projectile . | . . . AOE 2 | . 2 . Terrain Rammed . | . . . Walls Destroyed . | . . . Machines Disabled . | . . . Actions | -11 -10 -9 --------- Run | Scr Mat Mat Total 354 | 31 179 144 Wait . | . . . Move 315 | 15 159 141 Hop . | . . . Pick Up 3 | 2 1 . Fast Attach 5 | 4 1 . Attach 3 | . . 3 Detach 2 | 2 . . Swap . | . . . Drop 5 | 4 1 . Fire 21 | 4 17 . Melee . | . . . Ram . | . . . Kick . | . . . Crush . | . . . Escape Stasis . | . . . Rewire . | . . . Trap . | . . . Miscellaneous . | . . . Route ------- -11/Scrapyard -10/Materials (discovered 2 exits: [*Mat] / [*Min]) -9/Materials History --------- Turn | Location | Event 13 | -11/Scrapyard | Discovered new exit (range 3) 43 | -11/Scrapyard | Entered Materials 146 | -10/Materials | Discovered new exit (range 15) 241 | -10/Materials | Discovered new exit (range 15) 256 | -10/Materials | Entered another Materials area 256 | -9/Materials | Evolved 2 slots: Propulsion x2 397 | -9/Materials | Self-destructed Last Messages --------------- 00257_ T-07 Excavator is excavating. 00287_ Triggered EMP Trap. 00287_ A bubble of electromagnetic force engulfs the area. 00287_ Com. Wheel destroyed. 00287_ Door malfunctions. 00287_ EMP Trap short circuited. 00287_ A bubble of electromagnetic force engulfs the area. 00287_ Chain reaction triggered in Lgt. Nuclear Core. 00288_ K-01 Serf destroyed. 00289_ R-06 Scavenger collects Wheel. 00291_ R-06 Scavenger destroyed. 00321_ T-07 Excavator is excavating. 00323_ W-16 Scout sends out distress signal. 00324_ T-07 Excavator is excavating. 00333_ Med. Laser destroyed. 00333_ Critical hit (Burn: +37). 00333_ T-07 Excavator is excavating. 00367_ Com. Wheel destroyed. 00396_ Critical hit (Destroy). 00396_ Wheel destroyed. Map ----- +----------------------------------------------------+ | #??? ?????????????????????????????????????????? | | # ? ?????###????????????????????????????????? | | #? ??????#???????????????????????????????????? | | +? ???? ????#?????????????????????????????????? | | # ??? ????????????????????????????????????????? | | #???? ?????#??????????????????????????????????? | | #? ???? ###??#???????????????????????????????? | | #????? ??#???????????????????????????????????? | | ###?#?#???????????????????????????????????????? | | #????##??##???????????????????????????????????? | | #????#??????????????? ???????????????????????? | | #??## ##? ?? ???????# ???????????????????????? | | #?? #????????? ?? ???????????????????????? | | ##### ##???? ?????? ???????????????????????? | | #? ??????????# #??????????????????????? | | # ? ? ???????# #??????????????????????? | | #??#?????????# #?#????????????????????? | | ###+### #?##???????? # #??????????????????????? | | # #????????????# #??????????????????????? | | # #?#?#?? ???? # #??????????????????????? | | # #???? ????? ?# #??????????#???????????? | | ########???? ????# #??????????????????????? | | " """ # ##??? ??+ #??????????????????????? | | " """ # """ #??? ?? # #??????????????????????? | | " """ # """ #???? ????# #??????????????????????? | | # """ #?????????# @#??????????????????????? | | ###+### ????????### ##? ?? !#??????????????? | | #?# ######+############ # #??????????????? | | ### ???????????? | | Y ??????????? | | ####################### ###########???????????? | | ??#??????????##??##???#######????????????????????? | | ??##?????#???????????#????#?????#????#???????????? | | ???#?????????????????????????????????????????????? | | | | | | | | | | | | | | | | | | | | | | | | | | | | | | | | | +----------------------------------------------------+ Best States ------------- Heat Dissipation 28 Energy Generation 14 Energy Capacity 250 Matter Stores 300 Matter Capacity 300 Sight Range 16 Terrain Scan Range 16 Terrain Scan Density 60 Evasion (%) 42 Item Schematics ----------------- None Robot Schematics ------------------ None Fabricated ------------ Nothing Alien Tech Used ----------------- None Achievements -------------- None Challenges ------------ None Game ------ Seed DiametricModifiedSlayer Manual? 0 Play Time 00:04:06 Cumulative 204.1 hours Start 2021.12.19 @ 21:18:49 End 2021.12.19 @ 21:22:12 Sessions 1 Manual Loads 0 Difficulty Rogue Special Mode None Game No. 271 Rogue 271 Adventurer 0 Explorer 0 Win Type - Total 2 Types 2/0/0/0/0/0/0/0/0 Lore% 62 Gallery% 75 Achievement% 54 Wizard Run 0 Options --------- ASCII 0 Keyboard 1 Movement Vi Keybinds 0 Fullscreen 1 Font 18/SmallcapsGlow Map View 76x50 Tactical HUD 1 Map Filters NONE Filters NONE Steam 1 RUN: 7e08a727-d79b-4a2d-8914-04aa43c7f24d